bitfinex/quotes_SOLUSD_20240926
["timestamp","ask_amount","ask_price","bid_price","bid_amount"]
[1727308801097,0.12549,148.28,148.25,0.27397324]
[1727308801867,0.12549,148.26,148.25,0.27397324]
[1727308802068,25.44927703,148.26,148.25,0.27397324]
[1727308802874,25.32378703,148.26,148.25,20.27397324]
[1727308803073,25.44927703,148.26,148.25,20.27397324]
[1727308803994,16.5809,148.38,148.25,20.27397324]
[1727308804200,21.54690303,148.37,148.25,32.5087558]
[1727308804377,20.0,148.37,148.25,32.5087558]
[1727308804901,20.0,148.37,148.25,43.01485321]
[1727308805097,20.0,148.37,148.25,44.36368183]
[1727308805298,20.29,148.36,148.25,44.36368183]
[1727308805803,20.54098,148.34,148.25,44.36368183]
[1727308806178,0.12549,148.32,148.25,33.85758442]
[1727308810295,20.29,148.37,148.28,12.23478256]
[1727308810485,20.29,148.37,148.27,20.0]
[1727308810879,20.29,148.37,148.27,21.34866051]
[1727308811086,20.29,148.37,148.27,20.0]
[1727308811683,40.57,148.41,148.27,20.0]
[1727308811684,44.317864,148.36,148.27,20.0]
[1727308812424,20.29,148.37,148.29,20.0]
[1727308812575,16.44806109,148.42,148.31,6.5514]
[1727308813089,1.54690303,148.41,148.31,6.5514]
[1727308813402,21.83690303,148.41,148.31,6.5514]
[1727308813787,20.54098,148.39,148.31,6.5514]
[1727308813985,44.317864,148.37,148.31,6.5514]
[1727308814301,23.902374,148.35,148.31,6.5514]
[1727308814609,23.902374,148.33,148.27,6.5514]
[1727308814902,23.902374,148.31,148.28,20.0]
[1727308815085,1.54690303,148.3,148.28,20.0]
[1727308815501,23.902374,148.31,148.27,6.5514]
[1727308815700,23.902374,148.29,148.27,6.5514]
[1727308815888,20.29,148.36,148.27,1.34896382]
[1727308816088,20.29,148.35,148.27,1.34896382]
[1727308816887,20.29,148.35,148.27,21.34896382]
[1727308817186,20.29,148.36,148.28,15.529]
[1727308817400,23.902374,148.35,148.28,15.529]
[1727308818311,0.12549,148.34,148.28,15.529]
[1727308818606,0.12549,148.34,148.26,6.0163]
[1727308819107,0.12549,148.3,148.26,6.0163]
[1727308819280,0.12549,148.28,148.25,0.27397324]
[1727308819487,23.776884,148.27,148.25,0.27397324]
[1727308819683,1.67239303,148.26,148.25,0.27397324]
[1727308820703,0.12549,148.26,148.25,0.27397324]
[1727308820911,1.67239303,148.26,148.25,0.27397324]
[1727308821783,0.12549,148.26,148.25,0.27397324]
[1727308822397,1.67239303,148.26,148.25,0.27397324]
[1727308822603,25.44927703,148.26,148.25,0.27397324]
[1727308823123,25.57476703,148.26,148.25,0.27397324]
[1727308824597,45.86476703,148.26,148.25,0.27397324]
[1727308825115,45.86476703,148.26,148.21,0.2506623]
[1727308825116,44.317864,148.25,148.21,0.2506623]
[1727308825297,24.027864,148.25,148.21,0.2506623]
[1727308825694,0.25098,148.25,148.21,0.2506623]
[1727308826410,23.902374,148.23,148.21,0.2506623]
[1727308827092,15.7346,148.31,148.21,0.2506623]
[1727308827415,20.29,148.3,148.21,0.2506623]
[1727308828109,1.54690303,148.29,148.21,0.2506623]
[1727308829587,24.027864,148.28,148.21,0.2506623]
[1727308829913,23.902374,148.26,148.21,0.2506623]
[1727308830110,1.54690303,148.25,148.21,0.2506623]
[1727308831495,30.647274,148.26,148.21,0.2506623]
[1727308831899,23.902374,148.26,148.21,0.2506623]
[1727308832101,6.7435,148.3,148.22,28.78768256]
[1727308832297,6.7435,148.3,148.23,21.34910136]
[1727308832692,6.7435,148.3,148.23,33.58388392]
[1727308832889,6.7435,148.3,148.24,6.1635]
[1727308833400,6.7436,148.29,148.24,6.1635]
[1727308835007,0.12549,148.28,148.24,6.1635]
[1727308835811,16.8534,148.34,148.25,33.58382025]
[1727308836012,6.7426,148.32,148.25,33.58382025]
[1727308836197,6.7417,148.33,148.26,12.23478256]
[1727308836397,6.7423,148.32,148.26,12.23478256]
[1727308837094,23.902374,148.31,148.25,20.0]
[1727308837998,32.19197703,148.31,148.25,20.0]
[1727308838412,6.7432,148.3,148.25,20.0]
[1727308838624,1.54690303,148.29,148.25,20.0]
[1727308843700,0.12549,148.28,148.25,20.0]
[1727308844123,0.12549,148.26,148.24,6.1635]
[1727308844303,6.86949,148.28,148.25,20.0]
[1727308845202,23.902374,148.29,148.25,20.0]
[1727308846018,1.54690303,148.28,148.25,20.0]
[1727308848511,49.8504,148.35,148.25,20.0]
[1727308848512,36.435,148.35,148.25,20.0]
[1727308848818,16.5336,148.44,148.32,12.23478256]
[1727308849009,16.5336,148.48,148.36,6.3242]
[1727308849211,6.7376,148.43,148.36,38.55898256]
[1727308849414,8.28310303,148.46,148.36,38.68447256]
[1727308849613,8.28310303,148.46,148.39,12.23478256]
[1727308849614,1.79756533,148.45,148.39,12.23478256]
[1727308850310,1.79756533,148.45,148.37,20.12549]
[1727308850505,0.2506623,148.45,148.38,23.776884]
[1727308850726,0.2506623,148.45,148.4,19.10543531]
[1727308850934,0.2506623,148.45,148.41,20.0]
[1727308852817,0.2506623,148.45,148.36,6.3242]
[1727308853047,6.7385,148.4,148.36,6.3242]
[1727308853335,6.9873623,148.45,148.36,6.3242]
[1727308853542,6.9872623,148.45,148.37,1.34768513]
[1727308854142,30.514384,148.43,148.36,6.3242]
[1727308854322,30.514384,148.43,148.37,20.0]
[1727308854518,23.776884,148.43,148.37,20.0]
[1727308854716,6.86439,148.4,148.37,20.0]
[1727308855234,23.776884,148.43,148.37,21.34791478]
[1727308855448,7.14287203,148.42,148.37,21.34791478]
[1727308857414,0.40497203,148.42,148.37,21.34791478]
[1727308858436,0.40497203,148.42,148.37,20.0]
[1727308858818,1.95187506,148.42,148.37,20.0]
[1727308859018,6.7399,148.37,148.36,6.3242]
[1727308859217,1.67239303,148.41,148.36,6.3242]
[1727308859218,23.776884,148.4,148.36,6.3242]
[1727308859823,30.515584,148.4,148.36,6.3242]
[1727308860025,23.776884,148.4,148.36,6.3242]
[1727308860227,8.41139303,148.39,148.36,6.3242]
[1727308860426,0.12549,148.36,148.29,22.8577]
[1727308860630,23.776884,148.38,148.29,22.8577]
[1727308860835,6.7409,148.35,148.29,22.8577]
[1727308861027,1.54690303,148.34,148.29,22.8577]
[1727308861348,23.776884,148.38,148.29,22.8577]
[1727308861551,0.12549,148.35,148.29,22.8577]
[1727308861736,6.86629,148.35,148.29,22.8577]
[1727308862652,6.7395,148.38,148.32,20.12549]
[1727308862950,0.40497203,148.42,148.34,43.902374]
[1727308863140,7.14267203,148.42,148.34,43.902374]
[1727308863329,0.40497203,148.42,148.36,43.902374]
[1727308863743,0.40497203,148.42,148.36,20.12549]
[1727308864667,0.40497203,148.42,148.38,20.12549]
[1727308864847,0.40497203,148.42,148.39,1.3474365]
[1727308865029,0.40497203,148.42,148.38,20.0]
[1727308865256,0.40497203,148.42,148.37,0.12549]
[1727308865572,0.40497203,148.42,148.35,6.3123]
[1727308865732,6.7387,148.4,148.35,6.3123]
[1727308866451,8.28590303,148.39,148.35,6.3123]
[1727308866643,6.739,148.39,148.35,6.3123]
[1727308867153,6.86399,148.41,148.35,6.3123]
[1727308867455,0.12549,148.39,148.35,6.3123]
[1727308867638,6.738,148.41,148.35,6.3123]
[1727308868657,8.28540303,148.4,148.35,6.3123]
[1727308868835,8.28540303,148.4,148.32,20.0]
[1727308868836,6.86449,148.39,148.32,20.0]
[1727308869032,1.54690303,148.38,148.32,20.0]
[1727308869755,6.7394,148.38,148.32,20.0]
[1727308870759,23.902374,148.36,148.31,6.6174]
[1727308871060,8.28770303,148.35,148.31,6.6174]
[1727308871263,6.7384,148.41,148.31,6.6174]
[1727308871930,0.40497203,148.42,148.32,25.37563778]
[1727308872130,0.40497203,148.42,148.32,55.96771855]
[1727308872858,0.40497203,148.42,148.39,6.2632]
[1727308873035,0.40497203,148.42,148.4,1.34733677]
[1727308874031,0.40497203,148.42,148.4,21.34733677]
[1727308874261,0.40497203,148.42,148.41,0.12549]
[1727308874660,0.40497203,148.42,148.41,43.902374]
[1727308875633,0.2506623,148.45,148.44,20.12549]
[1727308875838,0.2506623,148.45,148.44,0.12549]
[1727308876047,0.2506623,148.45,148.44,1.47225935]
[1727308878737,0.2506623,148.45,148.44,43.902374]
[1727308882273,0.2506623,148.45,148.44,44.027864]
[1727308882475,0.2506623,148.45,148.44,82.6056615]
[1727308883059,0.2506623,148.45,148.44,81.25904477]
[1727308883866,0.4207938,148.51,148.45,44.027864]
[1727308884067,0.4207938,148.51,148.48,20.0]
[1727308884271,0.4207938,148.51,148.5,0.12549]
[1727308884655,0.4207938,148.51,148.48,20.0]
[1727308884975,0.4207938,148.51,148.47,0.12549]
[1727308885168,0.4207938,148.51,148.47,0.25098]
[1727308885345,0.4207938,148.51,148.49,0.12549]
[1727308885554,0.4207938,148.51,148.48,20.0]
[1727308885849,0.4207938,148.51,148.49,1.34651348]
[1727308886259,0.4207938,148.51,148.5,50.411564]
[1727308886472,0.4207938,148.51,148.5,50.286074]
[1727308888159,0.4207938,148.51,148.5,26.50919]
[1727308888982,0.4207938,148.51,148.5,50.286074]
[1727308891052,0.4207938,148.51,148.5,26.50919]
[1727308891977,0.4207938,148.51,148.49,0.12549]
[1727308892284,0.4207938,148.51,148.46,8.909207]
[1727308892862,0.4207938,148.51,148.46,6.2112]
[1727308893266,0.4207938,148.51,148.44,6.7326]
[1727308893465,7.1542938,148.51,148.42,6.2112]
[1727308893880,0.4207938,148.51,148.43,1.34667359]
[1727308894077,0.4207938,148.51,148.43,11.55372877]
[1727308894379,0.4207938,148.51,148.46,30.59208077]
[1727308894599,0.4207938,148.51,148.47,1.34639919]
[1727308894767,0.4207938,148.51,148.48,0.12549]
[1727308894958,0.4207938,148.51,148.49,1.34640388]
[1727308895154,0.4207938,148.51,148.48,0.12549]
[1727308897683,0.4207938,148.51,148.43,20.0]
[1727308898984,0.4207938,148.51,148.44,0.12549]
[1727308899178,0.4207938,148.51,148.46,0.12549]
[1727308901467,0.4207938,148.51,148.46,1.47213752]
[1727308903186,0.4207938,148.51,148.48,20.12549]
[1727308903387,0.4207938,148.51,148.5,0.12549]
[1727308903604,0.4207938,148.51,148.5,44.027864]
[1727308907079,0.4207938,148.51,148.5,43.902374]
[1727308907995,0.4207938,148.51,148.45,21.2291]
[1727308908198,0.4207938,148.51,148.46,1.34630974]
[1727308909087,0.4207938,148.51,148.47,24.027864]
[1727308909299,0.4207938,148.51,148.49,0.12549]
[1727308910676,0.4207938,148.51,148.49,1.47184319]
[1727308912097,0.4207938,148.51,148.49,0.12549]
[1727308913304,0.4207938,148.51,148.49,20.12549]
[1727308913610,0.4207938,148.51,148.5,1.4718474]
[1727308913902,0.4207938,148.51,148.5,25.3742214]
[1727308914078,0.4207938,148.51,148.5,45.3742214]
[1727308914278,0.4207938,148.51,148.5,64.44148351]
[1727308915898,0.4207938,148.51,148.5,63.09512611]
[1727308917802,0.4207938,148.51,148.45,6.0335]
[1727308918103,0.4207938,148.51,148.44,19.06726211]
[1727308918406,16.7622938,148.51,148.44,19.06726211]
[1727308918609,0.4207938,148.51,148.5,19.06726211]
[1727308919184,0.4207938,148.51,148.5,39.06726211]
[1727308919486,0.4207938,148.51,148.5,63.09512611]
[1727308922511,0.4207938,148.51,148.5,20.0]
[1727308922683,0.4207938,148.51,148.41,74.04298635]
[1727308922884,0.4207938,148.51,148.43,19.06726211]
[1727308923717,0.4207938,148.51,148.44,1.34666251]
[1727308924314,0.4207938,148.51,148.44,21.34666251]
[1727308925209,0.4207938,148.51,148.46,0.12549]
[1727308925524,0.4207938,148.51,148.48,0.12549]
[1727308925985,0.4207938,148.51,148.47,24.027864]
[1727308926618,0.4207938,148.51,148.47,0.12549]
[1727308926906,0.4207938,148.51,148.46,23.902374]
[1727308927286,0.4207938,148.51,148.47,1.34651126]
[1727308927486,6.7439938,148.51,148.42,20.0]
[1727308927717,13.4778938,148.51,148.42,20.0]
[1727308928213,6.7439938,148.51,148.42,20.0]
[1727308928912,6.7439938,148.51,148.44,20.0]
[1727308929119,6.7439938,148.51,148.47,0.12549]
[1727308929120,0.4207938,148.51,148.47,0.12549]
[1727308929289,0.4207938,148.51,148.49,0.12549]
[1727308929490,0.4207938,148.51,148.5,1.34640715]
[1727308930003,0.4207938,148.51,148.5,1.47189715]
[1727308930199,0.4207938,148.51,148.5,0.12549]
[1727308943919,0.4207938,148.51,148.46,20.0]
[1727308944921,7.1543938,148.51,148.42,10.57281965]
[1727308945226,7.1543938,148.51,148.42,7.03034495]
[1727308946332,0.4207938,148.51,148.42,26.1192941]
[1727308946916,15.9348,148.49,148.42,26.1192941]
[1727308947108,15.9348,148.49,148.43,20.0]
[1727308947315,15.9348,148.49,148.44,1.34687746]
[1727308948530,15.9348,148.49,148.44,23.902374]
[1727308948731,15.9348,148.49,148.46,0.12549]
[1727308948897,15.9348,148.49,148.45,20.0]
[1727308949324,15.9348,148.49,148.41,21.17248334]
[1727308950205,15.9348,148.49,148.42,23.776884]
[1727308950403,15.9348,148.49,148.45,0.12549]
[1727308951128,15.9348,148.49,148.44,0.12549]
[1727308951442,15.9348,148.49,148.44,1.47237728]
[1727308952517,15.9348,148.49,148.44,0.12549]
[1727308953219,22.6692,148.49,148.44,0.12549]
[1727308954321,15.9348,148.49,148.43,0.12549]
[1727308954721,15.9348,148.49,148.44,1.34694785]
[1727308955107,15.9348,148.49,148.45,0.12549]
[1727308956098,15.9348,148.49,148.44,0.12549]
[1727308958216,15.9348,148.49,148.43,0.12549]
[1727308958529,15.9348,148.49,148.44,1.34689151]
[1727308963107,15.9348,148.49,148.45,0.12549]
[1727308963312,15.9348,148.49,148.46,1.34687265]
[1727308963852,0.4207938,148.51,148.46,1.34687265]
[1727308963853,0.4207938,148.51,148.47,0.12549]
[1727308964133,0.4207938,148.51,148.49,0.12549]
[1727308964512,0.4207938,148.51,148.5,1.47193303]
[1727308964733,0.4207938,148.51,148.5,0.12549]
[1727308965306,0.4207938,148.51,148.49,0.12549]
[1727308965551,0.4207938,148.51,148.5,1.47195232]
[1727308966220,0.4207938,148.51,148.48,0.12549]
[1727308966543,0.4207938,148.51,148.48,1.47199589]
[1727308969241,0.4207938,148.51,148.48,0.12549]
[1727308975340,0.4207938,148.51,148.48,1.47200597]
[1727308975638,0.4207938,148.51,148.5,0.12549]
[1727308976735,0.4207938,148.51,148.5,20.56084875]
[1727308977020,0.2506623,148.54,148.52,0.12549]
[1727308977228,0.2506623,148.54,148.53,20.0]
[1727308977631,0.2506623,148.54,148.53,20.12549]
[1727308980448,0.4207938,148.59,148.53,20.12549]
[1727308980449,0.4207938,148.59,148.55,20.0]
[1727308980630,0.4207938,148.59,148.56,1.47123088]
[1727308981932,0.4207938,148.59,148.58,20.12549]
[1727308982244,0.4207938,148.59,148.58,45.37329956]
[1727308982454,0.4207938,148.59,148.58,20.12549]
[1727308983127,0.4207938,148.59,148.58,43.902374]
[1727308983444,0.4207938,148.59,148.58,45.37334043]
[1727308985337,0.4207938,148.59,148.58,20.12549]
[1727308985943,0.4207938,148.59,148.58,45.37338587]
[1727308990456,0.4207938,148.59,148.58,44.027864]
[1727308991648,0.4207938,148.59,148.58,20.12549]
[1727308992452,0.4207938,148.59,148.58,21.47099974]
[1727308994356,0.4207938,148.59,148.58,13.66309323]
[1727308994537,0.4207938,148.59,148.58,33.66309323]
[1727308996253,0.4207938,148.59,148.58,0.12549]
[1727308996456,0.4207938,148.59,148.58,20.12549]
[1727308997331,0.4207938,148.59,148.58,21.47112707]
[1727308999439,0.4207938,148.59,148.58,45.37350107]
[1727308999637,15.5878,148.65,148.61,23.902374]
[1727308999955,15.5878,148.65,148.62,32.31758349]
[1727309001656,0.4207938,148.68,148.62,57.56526499]
[1727309002360,0.4207938,148.68,148.62,56.21995749]
[1727309003264,0.4207938,148.68,148.64,20.12549]
[1727309003439,0.4207938,148.68,148.67,32.31758349]
[1727309003840,0.4207938,148.68,148.67,32.19209349]
[1727309004058,0.4207938,148.68,148.66,20.0]
[1727309004461,0.4207938,148.68,148.64,20.0]
[1727309004959,16.0905,148.69,148.64,20.0]
[1727309004960,16.5222901,148.69,148.64,20.0]
[1727309006432,16.5222901,148.69,148.63,0.12549]
[1727309006636,16.5222901,148.69,148.62,20.12549]
[1727309007350,12.9775,148.68,148.62,0.12549]
[1727309008747,12.9775,148.68,148.61,0.12549]
[1727309008948,12.9772,148.68,148.61,0.12549]
[1727309009460,14.52410303,148.68,148.61,0.12549]
[1727309011862,6.7268,148.66,148.58,20.0]
[1727309012460,6.85189,148.67,148.58,20.0]
[1727309012964,6.7264,148.67,148.59,1.34550495]
[1727309014169,6.7264,148.67,148.6,0.12549]
[1727309014882,6.7264,148.67,148.59,0.12549]
[1727309016246,6.7277,148.64,148.57,7.16782238]
[1727309016453,8.27510303,148.63,148.55,0.0545958]
[1727309016776,21.8264,148.62,148.55,0.0545958]
[1727309017373,21.8264,148.62,148.55,19.09466018]
[1727309017671,21.8264,148.62,148.56,20.0]
[1727309019073,15.7254,148.62,148.59,0.12549]
[1727309019378,22.1201,148.66,148.61,0.12549]
[1727309019873,22.1201,148.66,148.61,1.47087961]
[1727309020755,15.6281,148.66,148.61,20.51094399]
[1727309021265,15.6281,148.66,148.63,0.12549]
[1727309021465,15.6281,148.66,148.63,1.47075811]
[1727309021650,0.4317901,148.69,148.64,43.776884]
[1727309021857,0.4317901,148.69,148.65,1.47046487]
[1727309022286,0.4317901,148.69,148.65,20.51052925]
[1727309022458,0.4317901,148.69,148.68,20.12549]
[1727309022659,0.4317901,148.69,148.68,21.47027498]
[1727309023167,0.4317901,148.69,148.68,20.12549]
[1727309023360,0.4317901,148.69,148.68,0.12549]
[1727309023759,0.4317901,148.69,148.68,43.902374]
[1727309024370,0.4317901,148.69,148.68,20.12549]
[1727309025084,0.4317901,148.69,148.68,45.37256994]
[1727309025266,0.3162544,148.74,148.71,0.12549]
[1727309025609,0.3162544,148.74,148.72,20.0]
[1727309025968,0.3162544,148.74,148.71,0.12549]
[1727309026781,0.3162544,148.74,148.7,20.0]
[1727309026967,0.3162544,148.74,148.69,0.12549]
[1727309028676,0.3162544,148.74,148.68,20.0]
[1727309028984,16.1292,148.72,148.66,0.12549]
[1727309029166,16.1292,148.72,148.66,0.25098]
[1727309030087,16.1292,148.72,148.66,0.12549]
[1727309030691,16.1292,148.72,148.66,20.12549]
[1727309034283,22.8533,148.72,148.65,12.30783443]
[1727309034662,22.8533,148.72,148.66,20.0]
[1727309039169,22.8533,148.72,148.65,12.30783443]
[1727309039170,16.1292,148.72,148.68,20.0]
[1727309039480,16.1292,148.72,148.69,1.34483583]
[1727309040579,16.1292,148.72,148.68,20.0]
[1727309041787,1.54690303,148.71,148.64,20.0]
[1727309042184,0.12549,148.7,148.59,22.3487189]
[1727309042407,1.54690303,148.69,148.6,12.18234443]
[1727309042572,6.7259,148.68,148.6,12.18234443]
[1727309043097,8.27320303,148.67,148.6,12.18234443]
[1727309043492,0.12549,148.7,148.57,37.91645878]
[1727309043493,15.5564,148.65,148.57,44.95524991]
[1727309043695,15.5564,148.65,148.6,20.0]
[1727309044286,15.5564,148.65,148.58,20.0]
[1727309045101,15.5564,148.65,148.59,0.12549]
[1727309046903,22.2836,148.65,148.59,0.12549]
[1727309048876,15.5564,148.65,148.59,0.12549]
[1727309049084,15.5564,148.65,148.59,1.47093861]
[1727309049291,15.5564,148.65,148.61,20.12549]
[1727309049479,15.5564,148.65,148.62,1.34534047]
[1727309050477,15.1009,148.69,148.63,0.12549]
[1727309050672,15.1009,148.69,148.64,1.34509161]
[1727309051174,15.1009,148.69,148.62,23.902374]
[1727309051380,15.1009,148.69,148.63,20.0]
[1727309051598,15.1009,148.69,148.64,0.12549]
[1727309054095,15.1009,148.69,148.62,0.12549]
[1727309054397,8.27270303,148.68,148.62,0.12549]
[1727309054698,8.27270303,148.68,148.61,0.12549]
[1727309055493,6.7258,148.68,148.61,0.12549]
[1727309055711,15.1009,148.69,148.61,1.47079765]
[1727309055991,21.8263,148.69,148.61,1.47079765]
[1727309056198,21.8263,148.69,148.63,0.12549]
[1727309056599,8.27280303,148.68,148.63,0.12549]
[1727309057989,8.27280303,148.68,148.61,0.12549]
[1727309058498,15.1009,148.69,148.63,0.12549]
[1727309058705,15.1009,148.69,148.64,21.34512841]
[1727309059198,15.1009,148.69,148.64,20.0]
[1727309059701,15.1009,148.69,148.62,43.902374]
[1727309060377,15.1009,148.69,148.64,0.12549]
[1727309060576,15.1009,148.69,148.65,1.34513155]
[1727309060777,15.1009,148.69,148.62,43.902374]
[1727309062575,1.54690303,148.68,148.62,0.12549]
[1727309062992,8.27310303,148.68,148.62,0.12549]
[1727309063578,6.7263,148.67,148.62,0.12549]
[1727309063798,8.27400303,148.66,148.58,0.25098]
[1727309063997,6.7271,148.66,148.58,0.25098]
[1727309064279,6.7263,148.67,148.59,19.04899785]
[1727309064483,6.7263,148.67,148.6,0.12549]
[1727309065004,6.7263,148.67,148.6,20.12549]
[1727309065502,6.7263,148.67,148.6,0.12549]
[1727309066390,6.7263,148.67,148.6,12.316809]
[1727309066785,6.7263,148.67,148.61,20.0]
[1727309072203,23.2203,148.71,148.57,21.40848713]
[1727309072204,12.938,148.65,148.57,21.40848713]
[1727309072396,15.9205,148.64,148.57,21.40848713]
[1727309072916,6.7281,148.63,148.57,1.40848713]
[1727309073582,15.9205,148.64,148.57,1.40848713]
[1727309073786,22.6482,148.64,148.57,13.59980613]
[1727309073982,22.6482,148.64,148.58,20.12549]
[1727309074895,8.27500303,148.63,148.58,0.12549]
[1727309076688,6.7286,148.62,148.57,0.2374152]
[1727309076893,8.27590303,148.61,148.57,0.2374152]
[1727309077090,1.54690303,148.6,148.57,0.2374152]
[1727309078710,25.44927703,148.63,148.57,0.2374152]
[1727309078913,16.5844,148.62,148.57,0.2374152]
[1727309079224,1.54690303,148.61,148.57,0.2374152]
[1727309079388,6.7301,148.59,148.57,0.2374152]
[1727309079588,8.27720303,148.58,148.57,0.2374152]
[1727309082199,13.1454,148.59,148.57,0.2374152]
[1727309082798,1.54690303,148.58,148.57,0.2374152]
[1727309084530,13.1454,148.59,148.57,0.2374152]
[1727309092719,1.54690303,148.58,148.57,0.2374152]
[1727309093304,6.85579,148.58,148.57,0.2374152]
[1727309093835,8.40269303,148.58,148.57,0.2374152]
[1727309097814,6.85579,148.58,148.57,0.2374152]
[1727309098014,6.73,148.59,148.57,0.2374152]
[1727309100438,6.7295,148.6,148.57,0.2374152]
[1727309100740,23.3869,148.67,148.57,20.2374152]
[1727309100918,16.2015,148.66,148.58,1.34585362]
[1727309101533,6.7282,148.63,148.58,1.34585362]
[1727309101914,6.7277,148.64,148.58,1.34585362]
[1727309102230,6.7272,148.65,148.58,1.34585362]
[1727309103037,6.7272,148.65,148.58,13.53717262]
[1727309103336,6.7272,148.65,148.59,20.0]
[1727309103520,22.9283,148.66,148.6,1.3456238]
[1727309105020,6.7264,148.67,148.6,13.5369428]
[1727309105216,15.9069,148.7,148.61,20.12549]
[1727309105530,6.7259,148.68,148.62,1.34541369]
[1727309106131,6.7259,148.68,148.61,20.12549]
[1727309107030,6.7255,148.69,148.61,20.12549]
[1727309107516,6.7255,148.69,148.63,20.12549]
[1727309107716,6.7255,148.69,148.64,1.34529739]
[1727309108963,6.7245,148.71,148.64,13.53661639]
[1727309109243,6.7245,148.71,148.65,20.0]
[1727309109535,8.27190303,148.7,148.65,20.0]
[1727309109713,6.725,148.7,148.63,0.12549]
[1727309109909,0.2647348,148.72,148.64,20.0]
[1727309110112,6.7245,148.71,148.65,1.34515741]
[1727309110343,6.9887348,148.72,148.66,20.0]
[1727309110534,6.9887348,148.72,148.67,1.34508579]
[1727309110839,6.9887348,148.72,148.66,20.0]
[1727309110840,0.2647348,148.72,148.66,20.0]
[1727309111028,1.81163783,148.72,148.66,20.0]
[1727309111337,1.81163783,148.72,148.65,20.12549]
[1727309111718,8.53563783,148.72,148.65,20.12549]
[1727309112240,6.725,148.7,148.65,20.0]
[1727309112540,1.54690303,148.69,148.65,20.0]
[1727309112837,6.84999,148.71,148.65,21.34527639]
[1727309113217,0.12549,148.71,148.65,21.34527639]
[1727309114238,0.12549,148.71,148.65,20.0]
[1727309114420,6.84999,148.71,148.65,20.0]
[1727309114816,6.84999,148.71,148.65,21.34523037]
[1727309115629,6.84999,148.71,148.65,20.0]
[1727309116527,1.54690303,148.7,148.65,20.0]
[1727309116725,6.85089,148.69,148.6,22.1706]
[1727309116927,1.54690303,148.68,148.6,22.1706]
[1727309117820,6.7259,148.68,148.6,22.1706]
[1727309118026,1.54690303,148.67,148.6,22.1706]
[1727309118436,6.7249,148.7,148.63,20.0]
[1727309118621,6.7249,148.7,148.64,1.34534609]
[1727309120442,6.7249,148.7,148.63,20.0]
[1727309123650,0.2647348,148.72,148.65,20.0]
[1727309123651,0.12549,148.71,148.65,20.0]
[1727309123862,0.2647348,148.72,148.67,12.191319]
[1727309124021,0.2647348,148.72,148.68,21.34502002]
[1727309125023,0.2647348,148.72,148.68,20.0]
[1727309129353,0.2647348,148.72,148.68,33.53634281]
[1727309130945,0.2647348,148.72,148.71,20.12549]
[1727309131145,0.2647348,148.72,148.71,21.47008008]
[1727309132146,0.2647348,148.72,148.71,45.24696408]
[1727309132327,0.2647348,148.72,148.71,51.51036408]
[1727309132949,0.2647348,148.72,148.71,50.165774]
[1727309133436,0.2647348,148.72,148.71,26.38889]
[1727309133626,0.2647348,148.72,148.71,20.12549]
[1727309134131,0.2647348,148.72,148.71,21.47002824]
[1727309134439,0.2647348,148.72,148.71,20.12549]
[1727309136835,0.2647348,148.72,148.71,21.47002899]
[1727309137357,0.2647348,148.72,148.71,20.12549]
[1727309139137,0.2647348,148.72,148.71,33.66136583]
[1727309139639,0.2647348,148.72,148.71,32.316809]
[1727309140057,0.2647348,148.72,148.71,20.0]
[1727309140272,0.2647348,148.72,148.7,20.0]
[1727309140441,0.2647348,148.72,148.69,20.0]
[1727309140641,0.2647348,148.72,148.64,6.015]
[1727309140950,6.9887348,148.72,148.64,12.191319]
[1727309141153,1.54690303,148.71,148.64,12.191319]
[1727309141543,1.54690303,148.71,148.61,7.03184937]
[1727309141544,6.725,148.7,148.61,7.03184937]
[1727309141737,8.27230303,148.69,148.62,12.191319]
[1727309142355,1.54690303,148.69,148.62,12.191319]
[1727309142552,13.0972,148.7,148.62,12.191319]
[1727309142962,0.2647348,148.72,148.67,12.191319]
[1727309143182,0.2647348,148.72,148.68,20.0]
[1727309143762,0.2647348,148.72,148.66,20.0]
[1727309144051,0.2647348,148.72,148.66,21.34511598]
[1727309144460,0.2647348,148.72,148.66,1.34511598]